Cogmind - Beta 14 @@@ ROGUE MODE // 2025.01.05 @ 10:30:01 Player: Fazzonamite Result: Destroyed by G-67 Veteran with Plasma Rifle Performance ------------- Evolutions (6) 3000 Regions Visited (13) 2600 Robots Destroyed (110) 550 Value Destroyed (3139) 3139 Prototype IDs (32) 640 Alien Tech Used (0) 0 Bonus (1065) 1065 TOTAL SCORE: 10994 Bonus ------- High Alert Combat Kills 142 Follower Combat Kills 327 Entered DSFs 500 Registered with UFD 300 Friendly Fire -204 Cogmind --------- Core Integrity 0/1150 Matter 298/300 Energy 530/530 System Corruption 13% Temperature Cool (12) Movement Treading (180) Location -4/Extension Parts ------- > --- POWER (2) -------- Neutrino Core Neutrino Core > --- PROPULSION (4) --- Heavy Siege Treads Heavy Siege Treads > --- UTILITY (10) ----- Advanced Heat Sink Advanced Coolant Injector Medium Storage Unit Enhanced Optical Array Experimental Terrain Scan Processor Improved Targeting Computer Improved Focal Shield > --- WEAPON (3) ------- KE Penetrator Bore Cannon > --- INVENTORY (10) --- Heavy Siege Treads Compact Wheel VTOL Module Field Propulsion Array High-capacity Matter Pod (52) Remote Datajack Improved Remote Datajack Lance Peak State ------------ > --- POWER ------------ Neutrino Core Neutrino Core > --- PROPULSION ------- Heavy Siege Treads Heavy Siege Treads > --- UTILITY ---------- Advanced Heat Sink Advanced Coolant Injector Medium Storage Unit Enhanced Optical Array Advanced Signal Interpreter Experimental Terrain Scan Processor Improved Targeting Computer Improved Phase Shifter Improved Medium Armor Plating Improved Focal Shield > --- WEAPON ----------- Heavy Beamcaster Heavy Shock Bomb Launcher Lance > --- INVENTORY -------- Heavy Siege Treads Compact Wheel Field Propulsion Array High-capacity Matter Pod Field Laser Bore Cannon Remote Datajack Improved Remote Datajack [Rating: 112] Favorites ----------- Power Cooled Ion Engine Engine Cooled Ion Engine Power Core Neutrino Core Propulsion Compact Wheel Treads Heavy Siege Treads Leg Flexi-carbon Leg Wheel Compact Wheel Flight Unit Nuclear Pulse Array Utility Large Storage Unit Device Seismic Detector Storage Large Storage Unit Processor Experimental Terrain Scan Processor Hackware Hacking Suite Protection Weapon Shielding Weapon Heavy EM Shotgun Energy Gun Heavy EM Shotgun Ballistic Gun Enhanced Autogun Ballistic Cannon Bore Cannon Launcher Heavy Shock Bomb Launcher Special Weapon Remote Datajack Piercing Weapon Lance Special Melee Weapon Improved Datajack Build | -11 -10 -9 -8 -8 -8 -8 -6 -6 -6 -6 -5 -4 -4 ------- Run | Yrd Mat Mat Mat Sto Rec Scr Fac Was Fac DSF Fac Fac Ext Slots Evolved 12 | . . 2 2 . . . 4 . . . 2 2 . Power 1 | . . . . . . . . . . . . 1 . Propulsion 2 | . . . . . . . 1 . . . 1 . . Utility 8 | . . 2 1 . . . 3 . . . 1 1 . Weapon 1 | . . . 1 . . . . . . . . . . Parts Attached 148 | 7 9 17 8 18 5 13 8 4 . 8 5 16 30 Power 12 | 1 . 4 . 1 . . 1 1 . . . 1 3 Engine 6 | 1 . 3 . 1 . . 1 . . . . . . Core 6 | . . 1 . . . . . 1 . . . 1 3 Reactor . | . . . . . . . . . . . . . . Propulsion 37 | 2 3 8 2 2 2 5 1 1 . 2 . 3 6 Treads 13 | . 1 4 1 . 1 2 . . . . . . 4 Leg 2 | . . . . . . . . . . . . . 2 Wheel 17 | 2 2 4 1 2 1 3 1 . . 1 . . . Hover . | . . . . . . . . . . . . . . Flight 5 | . . . . . . . . 1 . 1 . 3 . Utility 50 | 2 2 4 5 4 . 5 6 2 . 2 4 4 10 Device 23 | 2 . 3 2 2 . 3 2 1 . . 1 1 6 Storage 2 | . 1 . . . . . . . . . . . 1 Processor 5 | . . . . . . 1 1 . . . . 2 1 Hackware 5 | . . . . . . . 1 1 . . 2 1 . Protection 15 | . 1 1 3 2 . 1 2 . . 2 1 . 2 Artifact . | . . . . . . . . . . . . . . Weapon 49 | 2 4 1 1 11 3 3 . . . 4 1 8 11 Energy Gun 19 | 2 4 1 . 4 . 2 . . . 1 . 1 4 Energy Cannon . | . . . . . . . . . . . . . . Ballistic Gun 20 | . . . 1 6 2 1 . . . 2 . 7 1 Ballistic Cannon 1 | . . . . . . . . . . . . . 1 Launcher 3 | . . . . . . . . . . 1 . . 2 Special Weapon 2 | . . . . . . . . . . . 1 . 1 Impact Weapon . | . . . . . . . . . . . . . . Slashing Weapon . | . . . . . . . . . . . . . . Piercing Weapon 2 | . . . . . . . . . . . . . 2 Special Melee Weapon 2 | . . . . 1 1 . . . . . . . . Unidentified Prototypes 2 | . . . . 1 . . . . . 1 . . . Corrupted Parts 1 | . . . . . . . . . . . . 1 . System Corruption 3 | . . . . . . . . . . . . 3 . Parts Lost 28 | . 1 1 . . . . . 1 . 6 5 9 5 Power 2 | . . 1 . . . . . . . 1 . . . Propulsion 5 | . . . . . . . . . . 1 1 3 . Utility 15 | . 1 . . . . . . . . 3 3 4 4 Weapon 6 | . . . . . . . . 1 . 1 1 2 1 Highest Loss Streak 9 | . 1 1 . . . . . 1 . 3 3 9 2 To Critical Strikes . | . . . . . . . . . . . . . . Average Slot Usage (%) 87 | . 94 95 98 99 100 97 86 89 80 64 31 26 69 Engine 6 | . 12 6 9 9 9 9 6 4 . . . . . Core 1 | . . 4 . . . . . 1 6 1 . . 6 Treads 7 | . 5 10 9 9 9 9 1 . . . . . 8 Wheel 8 | . 20 10 9 8 9 8 10 6 . 5 . . . Device 14 | . 18 18 18 18 18 12 9 26 26 14 2 1 15 Storage 7 | . 7 11 9 9 9 9 6 . . . . . 4 Processor 5 | . . . . . . 4 9 6 6 6 5 10 15 Hackware 1 | . . . . . . . 6 11 13 13 5 11 . Protection 11 | . 1 11 16 17 18 16 13 6 6 8 6 . 3 Energy Gun 10 | . 27 22 18 17 9 9 6 4 . 2 . . 4 Ballistic Gun 10 | . . . 9 9 17 18 13 13 13 8 . 1 . Peak Build Rating 112 | 9 11 16 25 36 32 45 57 60 56 60 46 45 112 Average Rating 39 | 4 9 14 19 30 31 37 48 57 56 49 33 27 88 On Entrance 28 | . 9 8 16 25 32 31 39 57 56 56 31 17 20 Naked Turns . | . . . . . . . . . . . . . . Heaviest Build 76 | 9 30 37 43 50 45 45 45 25 17 25 13 6 76 Greatest Support 140 | 26 32 23 22 22 16 30 40 49 22 37 13 8 140 Greatest Overweight (x) 8 | . 8 3 2 3 4 5 3 . . 1 4 . 1 Average Overweight (x) 1 | . . 1 1 2 2 3 1 . . . . . . Largest Inventory Capacity 15 | 5 15 15 15 15 15 15 15 5 5 5 5 5 10 Average Capacity 12 | 5 10 15 15 15 15 15 15 5 5 5 5 5 9 Most Carried 15 | 4 15 15 15 15 15 15 15 5 5 5 5 5 10 Average Carried 12 | 2 7 14 14 14 14 14 13 5 5 4 5 4 8 Final Capacity 15 | 5 15 15 15 15 15 15 15 5 5 5 5 5 10 Final Carried 15 | 4 15 15 15 15 15 15 15 5 5 5 5 5 10 Class Distribution -------------------- 45% | Commander-Tank 16% | Mutant 10% | Scavenger-Tank 6% | Tank 6% | Scavenger-Mutant 4% | Commander-Scrapper 4% | Hacker-Mutant Dominant Class ---------------- Mutant | -10/Materials Scavenger-Mutant | -9/Materials Scavenger-Tank | -8/Materials Tank | -8/Storage Commander-Tank | -8/Recycling Commander-Tank | -8/Scraptown Commander-Tank | -6/Factory Hacker-Tank | -6/Waste Hacker-Tank | -6/Factory Hacker-Tank | -6/DSF Mutant | -5/Factory Hacker-Mutant | -4/Factory Scavenger-Tank | -4/Extension Resources | -11 -10 -9 -8 -8 -8 -8 -6 -6 -6 -6 -5 -4 -4 ----------- Run | Yrd Mat Mat Mat Sto Rec Scr Fac Was Fac DSF Fac Fac Ext Matter Collected 3057 | 270 182 313 122 330 124 80 119 . . 312 . 151 1054 Remotely . | . . . . . . . . . . . . . . Salvage Created 4569 | 187 366 1007 254 291 . . 134 . . 279 . 249 1802 Parts 221 | 15 18 54 14 15 . . 6 . . 11 . 17 71 Haulers Intercepted 6 | . 2 1 1 2 . . . . . . . . . Recyclers Shooed 7 | . . . 1 1 . . . . . . . 2 3 Parts Field Recycled . | . . . . . . . . . . . . . . Retrieved Matter . | . . . . . . . . . . . . . . Parts Self-Destructed . | . . . . . . . . . . . . . . Prevented . | . . . . . . . . . . . . . . Kills | -11 -10 -9 -8 -8 -8 -8 -6 -6 -6 -6 -5 -4 -4 ------- Run | Yrd Mat Mat Mat Sto Rec Scr Fac Was Fac DSF Fac Fac Ext Combat Hostiles Destroyed 72 | . 7 19 3 3 . . 2 . . 7 . 11 20 Guns 53 | . 7 18 3 3 . . 2 . . 1 . 11 8 Cannons 6 | . . . . . . . . . . . . . 6 AOE 9 | . . . . . . . . . . 6 . . 3 Classes Destroyed 15 | 2 5 2 . 2 . . . . . 1 . 1 2 Worker 4 | . . . . 1 . . . . . . . . 3 Builder 5 | . 1 . . . . . . . . . . . 4 Tunneler 6 | 5 . . . . . . . . . . . . 1 Hauler 6 | . 2 1 1 2 . . . . . . . . . Recycler 10 | 1 . 2 1 . . . . . . . . . 6 Mechanic 1 | . . . . 1 . . . . . . . . . Watcher 6 | . 2 3 . 1 . . . . . . . . . Swarmer 32 | . 5 3 . 2 . . . . . 4 . 9 9 Grunt 18 | . 2 10 1 1 . . . . . 1 . . 3 Brawler 1 | . . 1 . . . . . . . . . . . Sentry 12 | . . 5 2 . . . 2 . . . . . 3 Specialist 2 | . . . . . . . . . . 2 . . . Hunter 2 | . . . . . . . . . . . . . 2 Programmer 3 | . . . . . . . . . . . . 2 1 Behemoth 2 | . . . . . . . . . . . . . 2 Best Kill Streak 19 | 6 3 7 1 5 . . 1 . . 4 . 5 19 Combat Bots Only 11 | . 3 6 1 2 . . 1 . . 4 . 5 11 Max Kills in Single Turn 4 | 1 1 2 1 2 . . 1 . . 3 . 1 4 Gunslinging 1 | . . 1 . . . . . . . . . . . Exploded 3 | . . . . . . . . . . 3 . . 1 Melee . | . . . . . . . . . . . . . . Uniques/NPCs Destroyed . | . . . . . . . . . . . . . . Combat | -11 -10 -9 -8 -8 -8 -8 -6 -6 -6 -6 -5 -4 -4 -------- Run | Yrd Mat Mat Mat Sto Rec Scr Fac Was Fac DSF Fac Fac Ext Hostile Shots Fired 717 | . 21 55 19 28 4 . 65 1 . 95 76 136 217 Missed 252 | . 9 12 4 13 2 . 26 . . 33 39 56 58 Damage Taken 7765 | . 127 536 215 245 127 . 344 40 . 1043 695 1481 2912 Core 1920 | . 67 116 30 36 10 . 60 . . 170 281 950 200 Absorbed by Shields . | . . . . . . . . . . . . . . Reduced by Siege Mode 489 | . . . . . . . . . . . . . 489 Redirected to Shielding 141 | . . 27 33 19 7 . 6 6 . 43 . . . Ignored by Resistances 626 | . . . . . . . 37 11 . 134 2 . 442 Core Remaining (%) 78 | 100 73 71 . . . 86 . . . 72 71 . . Volleys Fired 262 | 9 36 56 12 30 3 . 8 . . 15 . 28 65 Largest 3 | 2 2 2 3 3 3 . 3 . . 3 . 3 3 Hottest 190 | 80 121 121 144 125 100 . 103 . . 145 . 135 190 Shots Fired 535 | 18 72 111 36 54 10 . 20 . . 29 . 44 141 Gun 460 | 18 72 111 36 54 10 . 20 . . 21 . 44 74 Cannon 57 | . . . . . . . . . . . . . 57 Launcher 18 | . . . . . . . . . . 8 . . 10 Special . | . . . . . . . . . . . . . . Kinetic 189 | . . . 12 30 7 . 16 . . 14 . 41 69 Thermal 243 | . 36 111 24 . . . . . . 7 . 3 62 Explosive 8 | . . . . . . . . . . 8 . . . Electromagnetic 95 | 18 36 . . 24 3 . 4 . . . . . 10 Robot Hit Streak 33 | 5 10 14 21 25 4 . 9 . . 10 . 8 33 Robot Miss Streak 10 | 2 4 3 2 3 2 . 2 . . 2 . 10 2 Penetration Max 2 | . . . . . . . . . . . . . 2 Secondary Targets 5 | . 1 1 . . . . . . . . . 3 . Max Gunslinging Chain 1 | . 1 1 . . . . . . . . . 1 . Shots Hit Robots 386 | 11 43 78 29 34 10 . 16 . . 22 . 34 109 Core Hits 196 | 7 13 30 11 17 4 . 7 . . 19 . 31 57 Critical Kills 9 | . . . . . . . . . . . . 1 8 Critical Parts Destroyed 18 | . . . . . . . . . . . . 1 17 Critical Strikes 55 | . 2 7 2 . . . . . . 2 . 3 39 Burn 18 | . 2 7 2 . . . . . . 2 . 1 4 Destroy 37 | . . . . . . . . . . . . 2 35 Melee Attacks 15 | . . . . . 1 . . . . . . . 14 Impact . | . . . . . . . . . . . . . . Slashing . | . . . . . . . . . . . . . . Piercing 14 | . . . . . . . . . . . . . 14 Sneak Attacks 3 | . . . . . 1 . . . . . . . 2 Combat Hostiles . | . . . . . . . . . . . . . . Follow-up Attacks . | . . . . . . . . . . . . . . Damage Inflicted 9929 | 178 638 1201 465 824 85 . 272 . . 1505 . 841 3920 Guns 6117 | 157 638 1201 465 653 85 . 272 . . 378 . 779 1489 Cannons 1269 | . . . . . . . . . . . . . 1269 Explosions 2301 | 21 . . . 162 . . . . . 1126 . . 992 Melee 169 | . . . . . . . . . . . . . 169 Ramming 73 | . . . . 9 . . . . . 1 . 62 1 Kinetic 3273 | . . . 133 239 73 . 228 . . 270 . 757 1573 Thermal 3485 | 21 367 1201 332 162 . . . . . 108 . 22 1272 Explosive 1126 | . . . . . . . . . . 1126 . . . Electromagnetic 1803 | 157 271 . . 414 12 . 44 . . . . . 905 Impact . | . . . . . . . . . . . . . . Slashing . | . . . . . . . . . . . . . . Piercing 169 | . . . . . . . . . . . . . 169 Highest Corruption 13 | . . . . 4 4 . . 8 8 12 1 11 13 Average Corruption 7 | . . . . 4 4 . . 8 8 9 1 4 11 Corruption Purged . | . . . . . . . . . . . . . . Corruption Blocked . | . . . . . . . . . . . . . . Effects 104 | . . . . 15 14 . . 2 . 8 . 8 57 Message Errors 23 | . . . . 3 1 . . 1 . 3 . 3 12 Matter Fused 21 | . . . . 5 5 . . . . . . 3 8 Heat Flow Errors 12 | . . . . 3 1 . . . . . . . 8 Energy Discharges 17 | . . . . 1 3 . . 1 . 3 . . 9 Parts Rejected 3 | . . . . . . . . . . 2 . . 1 Parts Fused 2 | . . . . . 1 . . . . . . . 1 Data Loss (minor) 10 | . . . . 2 1 . . . . . . 1 6 Data Loss (major) 5 | . . . . 1 1 . . . . . . 1 2 Misfires 3 | . . . . . 1 . . . . . . . 2 Alerts 1 | . . . . . . . . . . . . . 1 Weapon Failures 7 | . . . . . . . . . . . . . 7 Overload Shots . | . . . . . . . . . . . . . . Overflow Damage 94 | . . . . 4 . . . . . 18 . . 72 Projectiles 22 | . . . . . . . . . . . . . 22 Explosions 72 | . . . . 4 . . . . . 18 . . 50 Melee . | . . . . . . . . . . . . . . Knockbacks 4 | . . . . . . . . . . . . 2 2 Impact 2 | . . . . . . . . . . . . 2 . Kinetic 2 | . . . . . . . . . . . . . 2 Secondary . | . . . . . . . . . . . . . . Self-Inflicted Damage 113 | . . . . 70 . . . . . . . 27 16 Shots 4 | . . . . 3 . . . . . . . . 1 Rammed 19 | . . . . 1 . . . . . 1 . 16 1 Targets Rammed 19 | . . . . 1 . . . . . 1 . 16 1 Kicked . | . . . . . . . . . . . . . . Crushed . | . . . . . . . . . . . . . . Highest Temperature 356 | 72 322 356 109 228 212 . 32 . . . . 3 205 Average Temperature 76 | 35 73 107 44 42 66 . 18 . . . . 3 69 Received Heat Transfer 1172 | . 36 204 90 45 24 . 78 . . 45 135 76 439 Effects 1 | . . 1 . . . . . . . . . . . Energy Bleed 1 | . . 1 . . . . . . . . . . . Siege Activations 5 | . . . . . . . . . . . . . 5 Total Turns 176 | . . . . . . . . . . . . . 176 Longest Duration 89 | . . . . . . . . . . . . . 89 Robots Corrupted 4 | . 1 . . . . . . . . . . . 3 Combat Hostiles 3 | . . . . . . . . . . . . . 3 Parts Fried 12 | 1 3 . . . . . . . . . . . 8 Impact Corruptions . | . . . . . . . . . . . . . . Robots Melted 2 | . . 2 . . . . . . . . . . . Combat Hostiles 1 | . . 1 . . . . . . . . . . . Parts Melted 20 | . 5 9 3 . . . . . . 1 . . 2 Heat Transferred 8796 | 50 1073 3478 962 300 . . . . . 500 . 150 2283 Parts Sabotaged . | . . . . . . . . . . . . . . Parts Stolen . | . . . . . . . . . . . . . . Parts Stripped . | . . . . . . . . . . . . . . Power Chain Reactions 6 | 1 . . . 3 . . . . . . . . 2 Alert | -11 -10 -9 -8 -8 -8 -8 -6 -6 -6 -6 -5 -4 -4 ------- Run | Yrd Mat Mat Mat Sto Rec Scr Fac Was Fac DSF Fac Fac Ext Peak Influence 870 | 30 293 470 338 297 34 . 184 27 18 211 332 870 475 Initial 380 | . 19 32 198 142 7 . . 22 18 12 102 152 380 Average 181 | 12 149 304 268 141 7 . 105 21 18 59 168 416 206 Maximum Alert Level 3 | . 1 2 1 1 . . . . . 1 1 3 2 Low Security (%) 61 | 100 63 27 5 84 100 . 100 100 100 98 67 20 48 Level 1 27 | . 36 33 95 15 . . . . . 1 32 37 38 Level 2 9 | . . 39 . . . . . . . . . 20 13 Level 3 1 | . . . . . . . . . . . . 20 . Level 4 . | . . . . . . . . . . . . . . Level 5 . | . . . . . . . . . . . . . . High Security . | . . . . . . . . . . . . . . Max Security . | . . . . . . . . . . . . . . Squads Dispatched 19 | . 1 3 . 2 . . 1 . . 3 3 3 3 Investigation 7 | . . 2 . 1 . . 1 . . . 2 . 1 Extermination . | . . . . . . . . . . . . . . Reinforcement 12 | . 1 1 . 1 . . . . . 3 1 3 2 Assault . | . . . . . . . . . . . . . . Garrison . | . . . . . . . . . . . . . . Intercept . | . . . . . . . . . . . . . . Searches Triggered 1 | . . . . . . . . . . . . . 1 Construction Impeded 2 | . . . . . . . . . . . . . 2 Haulers Reinforced . | . . . . . . . . . . . . . . Active Scanning Responses . | . . . . . . . . . . . . . . Cargo Convoy Interrupts . | . . . . . . . . . . . . . . Stealth | -11 -10 -9 -8 -8 -8 -8 -6 -6 -6 -6 -5 -4 -4 --------- Run | Yrd Mat Mat Mat Sto Rec Scr Fac Was Fac DSF Fac Fac Ext Distress Signals 15 | . 1 5 1 1 . . . . . . . 4 3 Communications Jammed . | . . . . . . . . . . . . . . Distress Signals . | . . . . . . . . . . . . . . Times Spotted 213 | . 14 27 8 25 4 . 8 6 . 13 15 59 34 Peak Tracking Total 13 | . 4 9 2 4 1 . 3 6 . 9 9 13 7 Tactical Retreats 20 | . . 1 . . 1 . . . . 4 4 9 1 Traps | -11 -10 -9 -8 -8 -8 -8 -6 -6 -6 -6 -5 -4 -4 ------- Run | Yrd Mat Mat Mat Sto Rec Scr Fac Was Fac DSF Fac Fac Ext Traps Triggered 10 | . 2 3 . 2 . . 1 . . 1 . . 1 Indirectly . | . . . . . . . . . . . . . . Trap Hack Attempts . | . . . . . . . . . . . . . . Triggered . | . . . . . . . . . . . . . . Disarmed . | . . . . . . . . . . . . . . Reprogrammed . | . . . . . . . . . . . . . . Reused . | . . . . . . . . . . . . . . Traps Extracted . | . . . . . . . . . . . . . . Installed . | . . . . . . . . . . . . . . Triggered 1 | . 1 . . . . . . . . . . . . Machines | -11 -10 -9 -8 -8 -8 -8 -6 -6 -6 -6 -5 -4 -4 ---------- Run | Yrd Mat Mat Mat Sto Rec Scr Fac Was Fac DSF Fac Fac Ext Machines Disabled 6 | . . . . 2 . . . . . 1 . 1 2 Max in Single Turn 1 | . . . . 1 . . . . . 1 . . 1 Garrison Access 1 | . . . . 1 . . . . . . . . . Machines Repaired . | . . . . . . . . . . . . . . Machines Dismantled . | . . . . . . . . . . . . . . Machines Sabotaged . | . . . . . . . . . . . . . . Overloaded Fab Kills . | . . . . . . . . . . . . . . Hacking | -11 -10 -9 -8 -8 -8 -8 -6 -6 -6 -6 -5 -4 -4 --------- Run | Yrd Mat Mat Mat Sto Rec Scr Fac Was Fac DSF Fac Fac Ext Machines Accessed 47 | . 8 4 2 8 6 3 5 . 1 . 3 1 6 Terminals 38 | . 7 4 2 6 5 . 3 . 1 . 3 1 6 Fabricators 2 | . . . . . . . 2 . . . . . . Repair Stations . | . . . . . . . . . . . . . . Recycling Units 2 | . 1 . . 1 . . . . . . . . . Scanalyzers . | . . . . . . . . . . . . . . Garrison Access 1 | . . . . 1 . . . . . . . . . Total Hacks 118 | . 20 15 3 19 20 10 11 . 1 . 5 2 12 Successful 64 | . 15 5 2 7 12 10 5 . 1 . 1 1 5 Failed 54 | . 5 10 1 12 8 . 6 . . . 4 1 7 Catastrophic 10 | . 1 1 1 1 . . . . . . 3 1 2 Database Lockouts . | . . . . . . . . . . . . . . Manual 43 | . 12 10 2 9 6 . . . . . . . 4 Terminals 93 | . 18 15 3 15 15 . 7 . 1 . 5 2 12 Fabricators 4 | . . . . . . . 4 . . . . . . Repair Stations . | . . . . . . . . . . . . . . Recycling Units 4 | . 2 . . 2 . . . . . . . . . Scanalyzers . | . . . . . . . . . . . . . . Garrison Access 2 | . . . . 2 . . . . . . . . . Terminal Hacks 46 | . 9 2 1 3 9 10 5 . 1 . 1 1 4 Record 15 | . . . . . 5 9 . . . . . . 1 Robot Analysis 5 | . 4 . . . . . 1 . . . . . . Prototype ID Bank 6 | . 2 1 . 1 . . 1 . . . 1 . . Open DSF 2 | . . . . . . . 1 . 1 . . . . Branch Access Points 6 | . 1 1 1 1 1 . . . . . . 1 . Emergency Access Points 1 | . . . . 1 . . . . . . . . . Fabricator Index 1 | . . . . . 1 . . . . . . . . Alert Level 1 | . . . . . . . 1 . . . . . . Unreport Threat 3 | . 1 . . . 1 . . . . . . . 1 Locate Traps 3 | . 1 . . . . . 1 . . . . . 1 Zone Layout 2 | . . . . . 1 . . . . . . . 1 Derelict Proto ID Bank 1 | . . . . . . 1 . . . . . . . Fabricator Hacks . | . . . . . . . . . . . . . . Repair Station Hacks . | . . . . . . . . . . . . . . Recycling Unit Hacks . | . . . . . . . . . . . . . . Scanalyzer . | . . . . . . . . . . . . . . Garrison Access Hacks 1 | . . . . 1 . . . . . . . . . Seal Access 1 | . . . . 1 . . . . . . . . . Unauthorized Hacks 17 | . 6 3 1 3 3 . . . . . . . 1 Terminals 15 | . 4 3 1 3 3 . . . . . . . 1 Assimilate 1 | . . 1 . . . . . . . . . . . Botnet 13 | . 4 2 1 2 3 . . . . . . . 1 Operators 1 | . . . . 1 . . . . . . . . . Fabricators . | . . . . . . . . . . . . . . Repair Stations . | . . . . . . . . . . . . . . Recycling Units 2 | . 2 . . . . . . . . . . . . Reject 1 | . 1 . . . . . . . . . . . . Mask 1 | . 1 . . . . . . . . . . . . Scanalyzers . | . . . . . . . . . . . . . . Garrison Access . | . . . . . . . . . . . . . . Data Cores Recovered . | . . . . . . . . . . . . . . Used . | . . . . . . . . . . . . . . Hacking Detections 33 | . 5 4 2 5 4 . 4 . 1 . 2 1 5 Full Trace Events 7 | . . 2 1 . . . 1 . . . 2 . 1 Feedback Events 2 | . . . . . . . . . . . 2 . . Corruption 1 | . . . . . . . . . . . 1 . . Hackware Fried 1 | . . . . . . . . . . . 1 . . Feedback Blocked . | . . . . . . . . . . . . . . Robot Schematics Acquired . | . . . . . . . . . . . . . . Robots Built . | . . . . . . . . . . . . . . Authchips . | . . . . . . . . . . . . . . Time . | . . . . . . . . . . . . . . Total Robot Build Rating . | . . . . . . . . . . . . . . Part Schematics Acquired . | . . . . . . . . . . . . . . Parts Built . | . . . . . . . . . . . . . . Authchips . | . . . . . . . . . . . . . . Time . | . . . . . . . . . . . . . . Total Part Build Rating . | . . . . . . . . . . . . . . Parts Repaired . | . . . . . . . . . . . . . . Time . | . . . . . . . . . . . . . . Parts Recycled . | . . . . . . . . . . . . . . Recycled Matter . | . . . . . . . . . . . . . . Retrieved Matter . | . . . . . . . . . . . . . . Retrieved Components . | . . . . . . . . . . . . . . Parts Scanalyzed . | . . . . . . . . . . . . . . Part Schematics Acquired . | . . . . . . . . . . . . . . Parts Damaged . | . . . . . . . . . . . . . . Bothacking | -11 -10 -9 -8 -8 -8 -8 -6 -6 -6 -6 -5 -4 -4 ------------ Run | Yrd Mat Mat Mat Sto Rec Scr Fac Was Fac DSF Fac Fac Ext Used RIF Installer . | . . . . . . . . . . . . . . Robots Hacked 1 | . . . . . 1 . . . . . . . . Non-combat . | . . . . . . . . . . . . . . Combat 1 | . . . . . 1 . . . . . . . . Robot Hacks Applied 1 | . . . . . 1 . . . . . . . . parse_system 1 | . . . . . 1 . . . . . . . . Relay Couplers Released . | . . . . . . . . . . . . . . Fabnet Peak Effective % . | . . . . . . . . . . . . . . Robots Rewired 5 | . . . . . . . . . . . . 2 3 Allies Hacked . | . . . . . . . . . . . . . . Hacks Repelled . | . . . . . . . . . . . . . . Allies | -11 -10 -9 -8 -8 -8 -8 -6 -6 -6 -6 -5 -4 -4 -------- Run | Yrd Mat Mat Mat Sto Rec Scr Fac Was Fac DSF Fac Fac Ext Total Allies 18 | . . 1 . 10 . 1 1 . . . . 2 3 Largest Group 10 | . . 1 1 10 10 10 10 2 1 2 . 1 3 Highest-Rated Group 173 | . . 10 10 173 173 173 173 54 16 32 . 49 148 Highest-Rated Ally 51 | . . 10 10 29 29 29 45 41 16 29 . 49 51 Total Orders 1 | . . . . 1 . . . . . . . . . EXPLORE 1 | . . . . 1 . . . . . . . . . Ally Attacks 105 | . . . . . 8 . 37 1 . 14 . 7 38 Total Damage 1795 | . . . . . 89 . 330 17 . 176 . 207 976 Kills 11 | . . . . . 1 . 4 . . . . 1 5 Allies Corrupted . | . . . . . . . . . . . . . . Allies Melted 1 | . . . . . . . . . . . . 1 . Intel | -11 -10 -9 -8 -8 -8 -8 -6 -6 -6 -6 -5 -4 -4 ------- Run | Yrd Mat Mat Mat Sto Rec Scr Fac Was Fac DSF Fac Fac Ext Robot Analysis Total 5 | . 4 . . . . . 1 . . . . . . Derelict Logs Recovered . | . . . . . . . . . . . . . . Drone Launches 2 | . . . . 2 . . . . . . . . . Drone Recoveries . | . . . . . . . . . . . . . . Exploration | -11 -10 -9 -8 -8 -8 -8 -6 -6 -6 -6 -5 -4 -4 ------------- Run | Yrd Mat Mat Mat Sto Rec Scr Fac Was Fac DSF Fac Fac Ext Turns Passed 9479 | 109 667 711 320 936 594 3510 436 51 11 197 164 442 1331 Spaces Moved 6395 | 65 467 295 158 554 421 2119 310 85 11 156 381 608 765 Core 919 | 9 1 . . . . . . . . 3 14 576 316 Treads 733 | . 5 61 5 1 . 283 . . . . . . 378 Legs 71 | . . . . . . . . . . . . . 71 Wheels 4142 | 56 461 234 153 553 421 1836 310 9 . 109 . . . Hover . | . . . . . . . . . . . . . . Flight 530 | . . . . . . . . 76 11 44 367 32 . Fastest Speed 32 | 50 90 115 130 130 130 110 110 40 40 40 40 32 50 Average Speed 122 | 84 105 147 133 130 130 162 116 48 40 82 40 49 124 Slowest Speed 450 | 90 450 240 225 305 140 330 135 95 40 100 250 50 190 Overloaded Moves . | . . . . . . . . . . . . . . Propulsion Burnouts . | . . . . . . . . . . . . . . Robots Hopped . | . . . . . . . . . . . . . . Cave-ins Triggered . | . . . . . . . . . . . . . . Exploration Rate (%) 48 | 4 81 31 16 78 79 94 8 76 . 74 13 21 52 Regions Visited 13 Branch Regions 4 Pre-discovered Areas 2 | . . . . . . 2 . . . . . . . Known Exits Taken 4 | . . . 1 1 . . . . 1 . . 1 . Unknown Exits Taken 6 | 1 1 1 . . 1 1 . . . . 1 . . Scrap Searched 9 | . . . . . . 9 . . . . . . . Spaces Dug . | . . . . . . . . . . . . . . Terrain Destroyed 68 | 7 . . . 12 . . . . . 42 . . 7 Melee . | . . . . . . . . . . . . . . Projectile 4 | . . . . . . . . . . . . . 4 AOE 64 | 7 . . . 12 . . . . . 42 . . 3 Terrain Rammed . | . . . . . . . . . . . . . . Walls Destroyed . | . . . . . . . . . . . . . . Machines Disabled . | . . . . . . . . . . . . . . Actions | -11 -10 -9 -8 -8 -8 -8 -6 -6 -6 -6 -5 -4 -4 --------- Run | Yrd Mat Mat Mat Sto Rec Scr Fac Was Fac DSF Fac Fac Ext Total 7527 | 100 570 465 245 733 459 2181 376 93 17 203 387 710 988 Wait 447 | 9 39 66 54 109 24 26 25 . 6 11 . 22 56 Move 6384 | 64 466 294 157 553 420 2118 310 84 11 155 380 607 765 Hop . | . . . . . . . . . . . . . . Pick Up 101 | 11 17 17 6 5 3 6 13 1 . 6 . 6 10 Fast Attach 53 | . 2 2 . 7 . 8 1 3 . 3 5 4 18 Attach 52 | 7 6 6 2 . 1 2 6 . . 4 . 12 6 Detach 8 | . . . . . . . . . . . . 6 2 Swap 43 | . 1 9 6 11 4 3 1 1 . 1 . . 6 Drop 100 | . 3 15 8 17 3 17 12 4 . 7 2 1 11 Fire 262 | 9 36 56 12 30 3 . 8 . . 15 . 28 65 Melee 15 | . . . . . 1 . . . . . . . 14 Ram 19 | . . . . 1 . . . . . 1 . 16 1 Kick . | . . . . . . . . . . . . . . Crush . | . . . . . . . . . . . . . . Escape Stasis 15 | . . . . . . . . . . . . . 15 Rewire 28 | . . . . . . 1 . . . . . 8 19 Trap . | . . . . . . . . . . . . . . Miscellaneous . | . . . . . . . . . . . . . . Route ------- -11/Scrapyard -10/Materials (discovered 4 exits: *Mat x2 / *Min x2) -9/Materials (discovered 2 exits: *Mat / Min) -8/Materials -8/Storage -8/Recycling -8/Scraptown (discovered 2 exits: *Fac x2) -6/Factory -6/Waste -6/Factory -6/DSF -5/Factory -4/Factory (discovered 4 exits: Upp x2 / *Ext x2) -4/Extension History --------- Turn | Location | Event 30 | -11/Scrapyard | Discovered new exit (range 15) 110 | -11/Scrapyard | Entered Materials 247 | -10/Materials | Discovered new exit (range 8) 304 | -10/Materials | Build established: Mutant 521 | -10/Materials | Discovered new exit (range 16) 642 | -10/Materials | Discovered new exit (range 7) 755 | -10/Materials | Identified exit to Mines 766 | -10/Materials | Discovered new exit (range 10) 777 | -10/Materials | Entered another Materials area 777 | -9/Materials | Evolved 2 slots: Utility x2 950 | -9/Materials | Identified exit to Mines 1314 | -9/Materials | Build established: Scavenger-Mutant 1374 | -9/Materials | Discovered new exit (range 12) 1488 | -9/Materials | Entered another Materials area 1488 | -8/Materials | Accompanied by 1 ally 1488 | -8/Materials | Evolved 2 slots: Utility x1, Weapon x1 1627 | -8/Materials | Identified exit to Storage 1793 | -8/Materials | Build established: Scavenger-Tank 1808 | -8/Materials | Entered Storage 1865 | -8/Storage | Met 01-MTF 1998 | -8/Storage | Found Prototype Launcher 2183 | -8/Storage | Build established: Tank 2498 | -8/Storage | Identified exit to Recycling 2538 | -8/Storage | Assisted by bots powering up and referring to "LRC-V3" 2744 | -8/Storage | Entered Recycling 2744 | -8/Recycling | Accompanied by 12 allies (01-MTF) 2839 | -8/Recycling | Build established: Commander-Tank 3261 | -8/Recycling | Scanned before Scraplab entrance 3312 | -8/Recycling | Entered Scraplab 3325 | -8/Recycling | Discovered new exit (range 2) 3338 | -8/Recycling | Entered Scraptown 3338 | -8/Scraptown | Accompanied by 10 allies 3338 | -8/Scraptown | System corruption cleaned by C-Scrubber 3467 | -8/Scraptown | Heard Great Nut preacher, LISTEN AND RECITE! 3568 | -8/Scraptown | Visited Fellowship of the Rings 3605 | -8/Scraptown | Visited Awakened 3644 | -8/Scraptown | Visited Bundlers 3875 | -8/Scraptown | Visited Shadow of the Wyrm 4328 | -8/Scraptown | Discovered new exit (range 5) 4534 | -8/Scraptown | Visited Cyclists 4548 | -8/Scraptown | Visited IN-MT5's Study 4581 | -8/Scraptown | Visited SPCMW 4674 | -8/Scraptown | Visited UFD Registry 4674 | -8/Scraptown | Registered with UFD as "Thermotube" 4705 | -8/Scraptown | Entered Cyclist Reading Room 4712 | -8/Scraptown | Learned location of Zion (-7) 4814 | -8/Scraptown | Visited Observation Area 4882 | -8/Scraptown | Visited LU-1G1's Boring Crew 4945 | -8/Scraptown | Visited Infowarlord's Domain 4965 | -8/Scraptown | Found Exp. Terrain Scan Processor 5083 | -8/Scraptown | Discovered new exit (range 5) 5130 | -8/Scraptown | Visited Curators Association 5151 | -8/Scraptown | Visited Botcube Research 5162 | -8/Scraptown | Botcube activated 5171 | -8/Scraptown | Found Botcube 5221 | -8/Scraptown | Visited Supply Room 5299 | -8/Scraptown | Visited DA-N13 Charitable Foundation 5309 | -8/Scraptown | Found DCF Scrap (29 items) 5656 | -8/Scraptown | Visited Abandonware Association 5714 | -8/Scraptown | Visited Science Guys 6006 | -8/Scraptown | Found Scrap Suit 6293 | -8/Scraptown | Build established: Commander-Scrapper 6778 | -8/Scraptown | Build established: Commander-Tank 6848 | -8/Scraptown | Entered Factory 6848 | -6/Factory | Accompanied by 10 allies 6848 | -6/Factory | Evolved 4 slots: Propulsion x1, Utility x3 6879 | -6/Factory | Botcube activated 6894 | -6/Factory | Lost 3 allies 6897 | -6/Factory | Botcube completed mutation into legged form, armed with 2 guns. 7284 | -6/Factory | Sucked down chute 7284 | -6/Factory | Entered Waste 7299 | -6/Waste | EMP discharged 7310 | -6/Waste | Spotted C-40 Crusher 7310 | -6/Waste | Spotted C-40 Crusher 7311 | -6/Waste | Spotted C-40 Crusher 7315 | -6/Waste | Spotted C-40 Crusher 7318 | -6/Waste | Spotted C-40 Crusher 7321 | -6/Waste | Crushed by Compactor (1 part destroyed, 1 dropped) 7328 | -6/Waste | Discovered new exit (range 10) 7328 | -6/Waste | Spotted C-40 Crusher 7335 | -6/Waste | Entered Factory 7346 | -6/Factory | Identified exit to DSF 7346 | -6/Factory | Entered DSF 7346 | -6/DSF | Accompanied by 1 ally 7373 | -6/DSF | Additional patrols routed to DSF 7387 | -6/DSF | Discovered new exit (range 16) 7417 | -6/DSF | System corruption reached 10% 7443 | -6/DSF | Lost 3 parts (1p2u) 7454 | -6/DSF | Identified Gui. Missile Launcher 7463 | -6/DSF | Lost 4 allies 7476 | -6/DSF | 8 allies followed down the chute 7543 | -6/DSF | Entered Factory 7543 | -5/Factory | Evolved 2 slots: Propulsion x1, Utility x1 7546 | -5/Factory | Lost 3 parts (1n1u1w) 7585 | -5/Factory | Hacking Suite fried by hacking feedback 7696 | -5/Factory | Discovered new exit (range 15) 7707 | -5/Factory | Entered another Factory area 7707 | -4/Factory | Evolved 2 slots: Power x1, Utility x1 7733 | -4/Factory | Lost 3 parts (1n1u1w) 7744 | -4/Factory | Identified exit to Upper Caves 7744 | -4/Factory | Identified exit to Extension 8095 | -4/Factory | System corruption reached 10% 8107 | -4/Factory | Core integrity fell below 50% 8120 | -4/Factory | Spotted B-86 Titan 8125 | -4/Factory | Lost 9 parts (3n4u2w) 8137 | -4/Factory | Core integrity fell below 20% 8149 | -4/Factory | Entered Extension 8343 | -4/Extension | Build established: Mutant 8399 | -4/Extension | Search patrols dispatched 9208 | -4/Extension | Spotted B-86 Titan 9231 | -4/Extension | Build established: Scavenger-Tank 9258 | -4/Extension | Destroyed B-86 Titan 9288 | -4/Extension | Spotted B-86 Titan 9344 | -4/Extension | Destroyed B-86 Titan 9349 | -4/Extension | Disrupted transfer network 9400 | -4/Extension | Destroyed 11 combat bots 9480 | -4/Extension | Destroyed by G-67 Veteran with Plasma Rifle Last Messages --------------- 09470_ System corrupted: Component data lost. 09470_ U-05 Engineer lays Concrete. 09470_ Acquired 58 matter. 09471_ U-05 Engineer lays Concrete. 09472_ R-10 Processor collects Corrupted Battle Rifle. 09472_ U-05 Engineer lays Concrete. 09474_ Imp. Medium Armor Plating destroyed. 09474_ K-01 Serf destroyed. 09474_ U-05 Engineer lays Concrete. 09475_ R-10 Processor collects Corrupted Myomer Leg. 09475_ U-05 Engineer lays Concrete. 09476_ Acquired 13 matter. 09476_ U-05 Engineer lays Concrete. 09477_ Critical hit (Burn: +50). 09477_ U-05 Engineer lays Concrete. 09479_ Hvy. Beamcaster destroyed. 09480_ U-05 Engineer lays Concrete. [Achievement: I Think I Know What's Going On] Map ----- +----------------------------------------------------+ | ?# ####T###+##### # #????????????????????? | | ?# #??### !#?# #??????????????????????? | | ?###########????#"" ### #??????????????????????? | | ????????????????#"" ! ""# #??????????????????????? | | ????????????????#"Y T"# #??????????????????????? | | ????????????????#"" ! ""#^#??????????????????????? | | ????????????????#"" ### #??????????????????????? | | ????????????????# !#?# #??????????????????????? | | ????????????????#######?# #??????????????????????? | | ????????????????????????# #??????????????????????? | | ????????????????????????# #??????????????????????? | | ????????????????????????# #??????????#???????????? | | ????????????????????????# #?######## #???????????? | | ??????????????????????### ### #! ### ##??????????? | | ??????????????????????#"" "" !%[%"" ""#?????????? | | ?????????????????????## " " =! " " #?????????? | | ?????????????????????#; #?????????? | | ?????##??????????????#; %%!u #?????????? | | ###################### %* ######????? | | %% %*!% =[ !%! A ????? | | % R=![ =! !==% %%= ????? | | * ! % % %[%[%% [%= =gg[%! ???? | | %* % %= =R[= *k! k%u =g=%%=*! ???? | | %| ]R *%%g u %k%%[%=% % ???? | | #######################= R=! =[ !% #####?????? | | ??????????????????????# @ #?????????? | | ??????????????????????# #?????????? | | ??????????????????????# #?????????? | | ??????????????????????# #?????????? | | ??????????????????????######T#"""#######?????????? | | ????????????????????????????##???????????????????? | | ?????????????????????????????????????????????????? | | | | | | | | | | | | | | | | | | | | | | | | | | | | | | | | | | | | | +----------------------------------------------------+ Best States ------------- Heat Dissipation 62 Coolant Potential 100 Energy Generation 33 Energy Capacity 530 Matter Stores 300 Matter Capacity 300 Sight Range 22 Terrain Scan Range 16 Terrain Scan Density 1010 Additional Mass Support 9 Armor Coverage 450 Resistance: KI 25 Resistance: TH 10 Weapon Shielding 33 Point Defense Rating 80 Phase Shifting 10 Evasion (%) 63 Targeting Accuracy 6 Core Analysis 6 Recoil Reduction 4 Offensive Hacking 20 Defensive Hacking 22 Item Schematics ----------------- None Robot Schematics ------------------ None Fabricated ------------ Nothing Alien Tech Used ----------------- None Achievements -------------- I Think I Know What's Going On Challenges ------------ None Game ------ Seed MatterWarlordDiverter Manual? 0 Play Time 02:40:36 Cumulative 163.9 hours Start 2025.01.05 @ 07:04:45 End 2025.01.05 @ 10:30:01 Sessions 1 Manual Loads 0 Difficulty Rogue Special Mode None Game No. 108 Rogue 108 Adventurer 0 Explorer 0 Win Type - Total 3 Types 3/0/0/0/0/0/0/0/0 Lore% 50 Gallery% 55 Achievement% 48 Wizard Run 0 Options --------- Layout 2 ASCII 0 Keyboard 0 Movement Mouse Keybinds 0 Fullscreen 1 Font 48/Smallcaps Map View 50x44 Zoom Use 0% Tactical HUD 1 Map Filters NONE Filters NONE Steam 1 RUN: aa0833a1-cc3a-4fee-980f-9ed442ee2bc0